fUSD/lending_fUSD_20260405
["ID","MTS","AMOUNT","RATE_DAILY","PERIOD"]
[419786356,1775379048292,-457.44,0.00014005,2]
[419786357,1775379048302,-31143.28476019,0.00014037,2]
[419786358,1775379048312,-217.7,0.00014057,2]
[419786359,1775379048323,-296.86,0.00014066,2]
[419786360,1775379048333,-166.66,0.0001411,2]
[419786361,1775379048343,-11422.25541393,0.00014115,2]
[419786362,1775379048355,-500.0,0.00014137,2]
[419786363,1775379048365,-674.6,0.00014145,2]
[419786364,1775379048375,-674.6,0.00014145,2]
[419786365,1775379048386,-674.6,0.00014145,2]
[419786366,1775379048397,-674.6,0.00014145,2]
[419786367,1775379048407,-674.82397972,0.00014145,2]
[419786368,1775379048418,-500.0,0.00014145,2]
[419786369,1775379048428,-500.0,0.00014145,2]
[419786370,1775379048438,-500.0,0.00014145,2]
[419786371,1775379048447,-467.45469685,0.00014145,2]
[419786372,1775379048457,-879.87,0.00014145,2]
[419786373,1775379048467,-879.87,0.00014145,2]
[419786374,1775379048477,-879.87,0.00014145,2]
[419786375,1775379048487,-879.87,0.00014145,2]
[419786376,1775379048499,-880.01513851,0.00014145,2]
[419786377,1775379048509,-1605.51,0.00014145,2]
[419786378,1775379048521,-1605.51,0.00014145,2]
[419786379,1775379048532,-1605.51,0.00014145,2]
[419786380,1775379048542,-1605.51,0.00014145,2]
[419786381,1775379048554,-1605.5210465,0.00014145,2]
[419786382,1775379048564,-765.0,0.00014145,2]
[419786383,1775379048574,-765.0,0.00014145,2]
[419786384,1775379048585,-765.0,0.00014145,2]
[419786385,1775379048597,-765.0,0.00014145,2]
[419786386,1775379048608,-765.02950636,0.00014145,2]
[419786387,1775379048618,-1289.11,0.00014145,2]
[419786388,1775379048628,-1289.11,0.00014145,2]
[419786389,1775379048640,-1289.11,0.00014145,2]
[419786390,1775379048650,-1289.11,0.00014145,2]
[419786391,1775379048659,-1289.19484396,0.00014145,2]
[419786392,1775379048669,-163.0,0.00014164,2]
[419786393,1775379048678,-1000.0,0.00014221,2]
[419786394,1775379048689,-1000.0,0.00014221,2]
[419786395,1775379048699,-503.19697935,0.00014221,2]
[419786396,1775379048710,-343.58098751,0.00014221,2]
[419786397,1775379048721,-1000.0,0.00014221,2]
[419786398,1775379048731,-1003.58783273,0.00014221,2]
[419786399,1775379048742,-150.0,0.00014243,2]
[419786400,1775379048753,-166.66,0.00014247,2]
[419786401,1775379048763,-150.0,0.00014247,2]
[419786402,1775379048773,-150.0,0.00014247,2]
[419786403,1775379048784,-150.0,0.00014247,2]
[419786404,1775379048794,-150.0,0.00014247,2]
[419786405,1775379048804,-1000.0,0.00014247,2]
[419786406,1775379048815,-1000.0,0.00014247,2]
[419786407,1775379048824,-1000.0,0.00014247,2]
[419786408,1775379048834,-1000.0,0.00014247,2]
[419786409,1775379048844,-1000.0,0.00014247,2]
[419786410,1775379048855,-1000.0,0.00014247,2]
[419786411,1775379048865,-1000.0,0.00014247,2]
[419786412,1775379048874,-1000.0,0.00014247,2]
[419786413,1775379048884,-1000.0,0.00014247,2]
[419786414,1775379048895,-189.74788311,0.00014247,2]
[419786415,1775379048904,-1000.0,0.00014247,2]
[419786416,1775379048914,-1000.0,0.00014247,2]
[419786417,1775379048924,-1000.0,0.00014247,2]
[419786418,1775379048934,-1000.0,0.00014247,2]
[419786419,1775379048944,-730.09729929,0.00014247,2]
[419786420,1775379048954,-627.70930647,0.00014247,2]
[419786421,1775379048964,-1000.0,0.00014247,2]
[419786422,1775379048974,-1000.0,0.00014247,2]
[419786423,1775379048984,-861.43877969,0.00014247,2]
[419786424,1775379048995,-1000.0,0.00014247,2]
[419786425,1775379049005,-1000.0,0.00014247,2]
[419786426,1775379049015,-308.03873246,0.00014247,2]
[419786427,1775379049025,-500.0,0.00014247,2]
[419786428,1775379049035,-500.99241895,0.00014247,2]
[419786429,1775379049044,-1000.0,0.00014247,2]
[419786430,1775379049054,-1000.0,0.00014247,2]
[419786431,1775379049064,-686.27125357,0.00014247,2]
[419786432,1775379049074,-1000.0,0.00014247,2]
[419786433,1775379049085,-743.80429884,0.00014247,2]
[419786434,1775379049095,-1000.0,0.00014247,2]
[419786435,1775379049106,-578.20924308,0.00014293,2]
[419786436,1775379049116,-200.0,0.00014293,2]
[419786437,1775379049127,-1428.38747117,0.00014293,2]
[419786438,1775379049136,-500.0,0.00014293,2]
[419786439,1775379049146,-721.12765535,0.00014293,2]
[419786440,1775379049157,-209.40437684,0.00014293,2]
[419786441,1775379049166,-500.0,0.00014293,2]
[419786442,1775379049176,-500.0,0.00014293,2]
[419786443,1775379049186,-500.0,0.00014293,2]
[419786444,1775379049197,-500.0,0.00014293,2]
[419786445,1775379049208,-151.0,0.00014293,2]
[419786446,1775379049218,-500.0,0.00014293,2]
[419786447,1775379049229,-151.0,0.00014293,2]
[419786448,1775379049240,-500.0,0.00014293,2]
[419786449,1775379049249,-151.0,0.00014293,2]
[419786450,1775379049259,-500.0,0.00014293,2]
[419786451,1775379049268,-154.76515316,0.00014293,2]
[419786452,1775379049278,-500.0,0.00014293,2]
[419786453,1775379049287,-500.0,0.00014293,2]
[419786454,1775379049297,-500.0,0.00014293,2]
[419786455,1775379049306,-500.0,0.00014293,2]
[419786456,1775379049316,-1000.0,0.00014293,2]
[419786457,1775379049326,-1000.0,0.00014293,2]
[419786458,1775379049335,-1000.0,0.00014293,2]
[419786459,1775379049345,-1000.0,0.00014293,2]
[419786460,1775379049355,-1000.0,0.00014293,2]
[419786461,1775379049365,-1000.0,0.00014293,2]
[419786462,1775379049375,-1000.0,0.00014293,2]
[419786463,1775379049384,-1000.0,0.00014293,2]
[419786464,1775379049394,-424.86822135,0.00014293,2]
[419786465,1775379049404,-3000.0,0.00014293,2]
[419786466,1775379049413,-209.40437684,0.00014293,2]
[419786467,1775379049423,-3000.0,0.00014293,2]
[419786468,1775379049433,-3000.0,0.00014293,2]
[419786469,1775379049442,-3000.0,0.00014293,2]
[419786470,1775379049451,-3000.0,0.00014293,2]
[419786471,1775379049461,-3000.0,0.00014293,2]
[419786472,1775379049471,-3000.0,0.00014293,2]
[419786473,1775379049480,-151.0,0.00014293,2]
[419786474,1775379049490,-743.50770149,0.00014293,2]
[419786475,1775379049500,-3000.0,0.00014293,2]
[419786476,1775379049510,-3000.0,0.00014293,2]
[419786477,1775379049522,-3000.0,0.00014293,2]
[419786478,1775379049533,-1297.36921025,0.00014293,2]
[419786479,1775379049544,-200.0,0.00014293,2]
[419786480,1775379049555,-174.61919141,0.00014293,2]
[419786481,1775379049565,-693.3919763,0.00014293,2]
[419786482,1775379049576,-500.0,0.00014293,2]
[419786483,1775379049585,-500.0,0.00014293,2]
[419786484,1775379049595,-500.0,0.00014293,2]
[419786485,1775379049606,-500.0,0.00014293,2]
[419786486,1775379049615,-170.0,0.00014293,2]
[419786487,1775379049624,-500.0,0.00014293,2]
[419786488,1775379049634,-170.0,0.00014293,2]
[419786489,1775379049644,-157.03985341,0.00014293,2]
[419786490,1775379049653,-170.0,0.00014293,2]
[419786491,1775379049663,-170.0,0.00014293,2]
[419786492,1775379049672,-170.0,0.00014293,2]
[419786493,1775379049682,-170.0,0.00014293,2]
[419786494,1775379049691,-279.9045709,0.00014293,2]
[419786495,1775379049700,-170.0,0.00014293,2]
[419786496,1775379049710,-170.0,0.00014293,2]
[419786497,1775379049719,-170.0,0.00014293,2]
[419786498,1775379049729,-170.0,0.00014293,2]
[419786499,1775379049739,-170.0,0.00014293,2]
[419786500,1775379049748,-329.84,0.00014316,2]
[419786501,1775379049758,-1000.0,0.00014342,2]
[419786502,1775379049767,-500.0,0.00014348,2]
[419786503,1775379049776,-151.0,0.00014348,2]
[419786504,1775379049786,-217.7,0.00014374,2]
[419786505,1775379049795,-314.13,0.00014375,2]
[419786506,1775379049804,-166.66,0.00014384,2]
[419786507,1775379049814,-150.0,0.000144,2]
[419786508,1775379049823,-150.0,0.000144,2]
[419786509,1775379049833,-150.0,0.000144,2]
[419786510,1775379049843,-150.0,0.000144,2]
[419786511,1775379049852,-150.0,0.000144,2]
[419786512,1775379049862,-150.0,0.000144,2]
[419786513,1775379049871,-150.0,0.000144,2]
[419786514,1775379049881,-150.0,0.000144,2]
[419786515,1775379049890,-150.0,0.000144,2]
[419786516,1775379049900,-500.0,0.00014403,2]
[419786517,1775379049909,-151.0,0.00014403,2]
[419786518,1775379049918,-1000.0,0.00014417,2]
[419786519,1775379049927,-150.0,0.00014421,2]
[419786520,1775379049937,-508.0,0.00014423,3]
[419786521,1775379049946,-150.0,0.00014426,2]
[419786522,1775379049956,-150.0,0.00014429,2]
[419786523,1775379049966,-150.0,0.00014429,2]
[419786524,1775379049975,-150.0,0.00014432,2]
[419786525,1775379049985,-150.0,0.00014442,2]
[419786526,1775379049995,-40979.33701341,0.00014447,2]
[419786527,1775379050004,-1000.0,0.00014448,2]
[419786528,1775379050014,-150.0,0.00014452,2]
[419786529,1775379050023,-150.0,0.00014453,2]
[419786530,1775379050033,-500.0,0.00014458,2]
[419786531,1775379050043,-151.0,0.00014458,2]
[419786532,1775379050052,-150.0,0.00014458,2]
[419786533,1775379050062,-150.0,0.00014458,2]
[419786534,1775379050072,-150.0,0.00014463,2]
[419786535,1775379050081,-150.0,0.00014464,2]
[419786536,1775379050091,-150.0,0.0001447,2]
[419786537,1775379050102,-150.0,0.00014477,2]
[419786538,1775379050112,-150.0,0.00014484,2]
[419786539,1775379050122,-150.0,0.00014487,2]
[419786540,1775379050132,-150.0,0.00014487,2]
[419786541,1775379050142,-150.0,0.00014496,2]
[419786542,1775379050153,-150.0,0.00014503,2]
[419786543,1775379050164,-150.0,0.00014505,2]
[419786544,1775379050175,-150.0,0.00014507,2]
[419786545,1775379050185,-500.0,0.00014513,2]
[419786546,1775379050195,-151.0,0.00014513,2]
[419786547,1775379050206,-150.0,0.00014516,2]
[419786548,1775379050216,-150.0,0.00014516,2]
[419786549,1775379050226,-251.68919643,0.00014517,2]
[419786550,1775379050235,-150.0,0.00014526,2]
[419786551,1775379050246,-150.0,0.00014528,2]
[419786552,1775379050256,-150.0,0.00014529,2]
[419786553,1775379050265,-150.0,0.00014539,2]
[419786554,1775379050277,-296.86,0.0001454,2]
[419786555,1775379050287,-150.0,0.00014545,2]
[419786556,1775379050298,-150.0,0.00014545,2]
[419786557,1775379050308,-150.0,0.00014547,2]
[419786558,1775379050318,-150.0,0.00014555,2]
[419786559,1775379050328,-150.0,0.0001456,2]
[419786560,1775379050337,-150.0,0.0001456,2]
[419786561,1775379050347,-500.0,0.00014568,2]
[419786562,1775379050356,-151.0,0.00014568,2]
[419786563,1775379050366,-150.0,0.00014568,2]
[419786564,1775379050376,-150.0,0.00014575,2]
[419786565,1775379050385,-150.0,0.00014575,2]
[419786566,1775379050395,-150.0,0.00014581,2]
[419786567,1775379050406,-150.0,0.00014589,2]
[419786568,1775379050416,-150.0,0.00014592,2]
[419786569,1775379050428,-1000.0,0.00014601,2]
[419786570,1775379050438,-150.0,0.00014604,2]
[419786571,1775379050449,-150.0,0.00014604,2]
[419786572,1775379050460,-150.0,0.00014606,2]
[419786573,1775379050471,-1000.0,0.00014607,2]
[419786574,1775379050482,-150.0,0.00014609,2]
[419786575,1775379050493,-150.0,0.00014611,2]
[419786576,1775379050505,-150.0,0.00014613,2]
[419786577,1775379050516,-1000.0,0.00014616,2]
[419786578,1775379050526,-500.0,0.00014623,2]
[419786579,1775379050537,-151.0,0.00014623,2]
[419786580,1775379050547,-150.0,0.00014624,2]
[419786581,1775379050558,-500.0,0.0001463,2]
[419786582,1775379050568,-150.0,0.00014632,2]
[419786583,1775379050580,-150.0,0.00014632,2]
[419786584,1775379050590,-150.0,0.00014633,2]
[419786585,1775379050600,-150.0,0.00014633,2]
[419786586,1775379050863,-150.0,0.00014653,2]
[419786587,1775379050874,-150.0,0.00014656,2]
[419786588,1775379050884,-150.0,0.00014658,2]
[419786589,1775379050894,-150.0,0.00014662,2]
[419786590,1775379050904,-150.0,0.00014662,2]
[419786591,1775379050913,-150.0,0.00014667,2]
[419786592,1775379050923,-150.0,0.00014674,2]
[419786593,1775379050937,-500.0,0.00014676,2]
[419786594,1775379050947,-500.0,0.00014676,2]
[419786595,1775379050956,-500.0,0.00014676,2]
[419786596,1775379050965,-168.69935806,0.00014676,2]
[419786597,1775379050975,-500.0,0.00014676,2]
[419786598,1775379050984,-500.0,0.00014676,2]
[419786599,1775379050993,-500.0,0.00014676,2]
[419786600,1775379051002,-500.0,0.00014676,2]
[419786601,1775379051012,-312.74353669,0.00014676,2]
[419786602,1775379051021,-518.73332026,0.00014676,2]
[419786603,1775379051030,-210.98153295,0.00014676,2]
[419786604,1775379051040,-500.0,0.00014676,2]
[419786605,1775379051049,-500.0,0.00014676,2]
[419786606,1775379051059,-607.20051974,0.00014676,2]
[419786607,1775379051072,-500.0,0.00014678,2]
[419786608,1775379051081,-151.0,0.00014678,2]
[419786609,1775379051090,-150.0,0.00014678,2]
[419786610,1775379051100,-150.0,0.00014684,2]
[419786611,1775379051109,-150.0,0.00014688,2]
[419786612,1775379051118,-150.0,0.00014691,2]
[419786613,1775379051127,-150.0,0.00014691,2]
[419786614,1775379051136,-150.0,0.00014695,2]
[419786615,1775379051145,-150.0,0.0001471,2]
[419786616,1775379051154,-254.13,0.0001471,2]
[419786617,1775379051164,-150.0,0.00014716,2]
[419786618,1775379051173,-1572.0,0.0001472,2]
[419786619,1775379051182,-1572.0,0.0001472,2]
[419786620,1775379051191,-150.0,0.0001472,2]
[419786621,1775379051201,-150.0,0.0001472,2]
[419786622,1775379051210,-150.0,0.0001472,2]
[419786623,1775379051220,-150.0,0.0001472,2]
[419786624,1775379051229,-211.3,0.00014728,2]
[419786625,1775379051238,-500.0,0.00014733,2]
[419786626,1775379051247,-151.0,0.00014733,2]
[419786627,1775379051257,-254.13,0.00014735,2]
[419786628,1775379051266,-150.0,0.00014735,2]
[419786629,1775379051275,-150.0,0.00014737,2]
[419786630,1775379051284,-150.0,0.00014748,2]
[419786631,1775379051294,-500.0,0.00014748,2]
[419786632,1775379051303,-150.0,0.00014749,2]
[419786633,1775379051312,-150.0,0.00014749,2]
[419786634,1775379051322,-274.57636762,0.0001475,2]
[419786635,1775379051331,-150.0,0.00014752,2]
[419786636,1775379051341,-1000.0,0.00014753,2]
[419786637,1775379051350,-150.0,0.00014758,2]
[419786638,1775379051359,-254.12375685,0.00014761,2]
[419786639,1775379051369,-150.0,0.00014761,2]
[419786640,1775379051378,-1341.5818023,0.00014768,2]
[419786641,1775379051387,-1500.0,0.00014768,2]
[419786642,1775379051396,-1500.0,0.00014768,2]
[419786643,1775379051407,-150.0,0.00014773,2]
[419786644,1775379051417,-3225.33480354,0.00014776,2]
[419786645,1775379051426,-150.0,0.00014778,2]
[419786646,1775379051435,-150.0,0.00014778,2]
[419786647,1775379051444,-150.0,0.00014779,2]
[419786648,1775379051453,-150.0,0.00014784,2]
[419786649,1775379051462,-150.0,0.00014787,2]
[419786650,1775379051471,-500.0,0.00014788,2]
[419786651,1775379051480,-151.0,0.00014788,2]
[419786652,1775379051490,-989.7,0.00014794,2]
[419786653,1775379051499,-989.7,0.00014794,2]
[419786654,1775379051508,-989.7,0.00014794,2]
[419786655,1775379051517,-989.7,0.00014794,2]
[419786656,1775379051526,-989.83053791,0.00014794,2]
[419786657,1775379051535,-1289.0,0.00014794,2]
[419786658,1775379051544,-1289.0,0.00014794,2]
[419786659,1775379051553,-1289.0,0.00014794,2]
[419786660,1775379051562,-1289.0,0.00014794,2]
[419786661,1775379051571,-1289.07918003,0.00014794,2]
[419786662,1775379051580,-889.96,0.00014794,2]
[419786663,1775379051590,-889.96,0.00014794,2]
[419786664,1775379051599,-889.96,0.00014794,2]
[419786665,1775379051608,-889.96,0.00014794,2]
[419786666,1775379051618,-889.97745143,0.00014794,2]
[419786667,1775379051628,-1002.83538283,0.00014795,2]
[419786668,1775379051637,-1000.0,0.00014795,2]
[419786669,1775379051649,-1500.0,0.00014795,2]
[419786670,1775379051659,-1500.0,0.00014795,2]
[419786671,1775379051668,-1500.0,0.00014795,2]
[419786672,1775379051680,-1500.0,0.00014795,2]
[419786673,1775379051689,-1500.0,0.00014795,2]
[419786674,1775379051698,-1500.0,0.00014795,2]
[419786675,1775379051708,-1500.0,0.00014795,2]
[419786676,1775379051719,-1500.0,0.00014795,2]
[419786677,1775379051729,-1500.0,0.00014795,2]
[419786678,1775379051738,-1500.0,0.00014795,2]
[419786679,1775379051747,-1227.692277,0.00014795,2]
[419786680,1775379051756,-1500.0,0.00014795,2]
[419786681,1775379051765,-1500.0,0.00014795,2]
[419786682,1775379051774,-953.31303788,0.00014795,2]
[419786683,1775379051783,-1515.96545288,0.00014795,2]
[419786684,1775379051793,-1500.0,0.00014795,2]
[419786685,1775379051802,-1500.0,0.00014795,2]
[419786686,1775379051812,-1500.0,0.00014795,2]
[419786687,1775379051820,-1500.0,0.00014795,2]
[419786688,1775379051829,-553.41835149,0.00014795,2]
[419786689,1775379051839,-6453.0,0.00014799,2]
[419786690,1775379051848,-150.0,0.000148,2]
[419786691,1775379051857,-150.0,0.00014807,2]
[419786692,1775379051866,-150.0,0.00014807,2]
[419786693,1775379051876,-150.0,0.00014813,2]
[419786694,1775379051885,-150.0,0.00014816,2]
[419786695,1775379051894,-150.0,0.00014817,2]
[419786696,1775379051904,-150.0,0.00014821,2]
[419786697,1775379051913,-150.0,0.00014827,2]
[419786698,1775379051922,-150.0,0.00014836,2]
[419786699,1775379051931,-150.0,0.00014836,2]
[419786700,1775379051940,-150.0,0.00014839,2]
[419786701,1775379051949,-200.0,0.00014841,2]
[419786702,1775379051958,-1481.23780761,0.00014841,2]
[419786703,1775379051967,-217.15233878,0.00014841,2]
[419786704,1775379051976,-339.62894544,0.00014841,2]
[419786705,1775379051985,-771.01748645,0.00014841,2]
[419786706,1775379051995,-200.0,0.00014841,2]
[419786707,1775379052004,-181.08010149,0.00014841,2]
[419786708,1775379052013,-719.04747942,0.00014841,2]
[419786709,1775379052022,-290.26104003,0.00014841,2]
[419786710,1775379052032,-150.0,0.00014842,2]
[419786711,1775379052041,-500.0,0.00014843,2]
[419786712,1775379052051,-151.0,0.00014843,2]
[419786713,1775379052060,-150.0,0.00014848,2]
[419786714,1775379052069,-15609.82,0.00014853,2]
[419786715,1775379052078,-4212.59,0.00014853,2]
[419786716,1775379052087,-1998.54,0.00014853,2]
[419786717,1775379052096,-150.0,0.00014863,2]
[419786718,1775379052105,-150.0,0.00014865,2]
[419786719,1775379052115,-150.0,0.00014865,2]
[419786720,1775379052124,-150.0,0.00014865,2]
[419786721,1775379052133,-2129.0,0.00014869,2]
[419786722,1775379052143,-150.0,0.0001488,2]
[419786723,1775379052152,-150.0,0.0001488,2]
[419786724,1775379052161,-150.0,0.00014884,2]
[419786725,1775379052170,-150.0,0.00014887,2]
[419786726,1775379052179,-150.0,0.0001489,2]
[419786727,1775379052188,-150.0,0.00014895,2]
[419786728,1775379052198,-150.0,0.00014895,2]
[419786729,1775379052207,-3000.0,0.00014904,2]
[419786730,1775379052216,-150.0,0.00014905,2]
[419786731,1775379052225,-1000.0,0.00014906,2]
[419786732,1775379052234,-1191.29403377,0.0001491,2]
[419786733,1775379052243,-150.0,0.00014912,2]
[419786734,1775379052252,-150.0,0.00014916,2]
[419786735,1775379052260,-150.0,0.00014924,2]
[419786736,1775379052270,-150.0,0.00014924,2]
[419786737,1775379052279,-150.0,0.00014926,2]
[419786738,1775379052288,-150.0,0.00014933,2]
[419786739,1775379052297,-150.0,0.00014933,2]
[419786740,1775379052306,-150.0,0.00014942,2]
[419786741,1775379052317,-150.0,0.00014944,2]
[419786742,1775379052326,-150.0,0.00014947,2]
[419786743,1775379052336,-500.0,0.00014949,2]
[419786744,1775379052344,-1098.69,0.00014949,2]
[419786745,1775379052354,-500.0,0.00014949,2]
[419786746,1775379052364,-500.0,0.0001495,2]
[419786747,1775379052373,-150.0,0.00014953,2]
[419786748,1775379052383,-150.0,0.00014953,2]
[419786749,1775379052392,-150.0,0.00014957,2]
[419786750,1775379052401,-150.0,0.00014968,2]
[419786751,1775379052411,-150.0,0.00014968,2]
[419786752,1775379052420,-31143.28476019,0.00014969,2]
[419786753,1775379052429,-150.0,0.00014976,2]
[419786754,1775379052438,-150.0,0.00014982,2]
[419786755,1775379052447,-150.0,0.00014982,2]
[419786756,1775379052457,-150.0,0.00014987,2]
[419786757,1775379052467,-150.0,0.00014989,2]
[419786758,1775379052476,-150.0,0.00014994,2]
[419786759,1775379052485,-317.4184646,0.00014996,2]
[419786760,1775379052496,-300.0,0.00015,2]
[419786761,1775379052505,-871.95012592,0.00015001,2]
[419786762,1775379052515,-150.0,0.00015008,2]
[419786763,1775379052525,-150.0,0.00015011,2]
[419786764,1775379052534,-150.0,0.00015011,2]
[419786765,1775379052544,-150.0,0.00015011,2]
[419786766,1775379052565,-500.0,0.00015015,2]
[419786767,1775379052584,-2000.0,0.00015015,2]
[419786768,1775379052602,-1000.0,0.00015019,2]
[419786769,1775379052622,-150.0,0.00015019,2]
[419786770,1775379052640,-150.0,0.00015026,2]
[419786771,1775379052659,-150.0,0.00015032,2]
[419786772,1775379052675,-163.913,0.00015033,2]
[419786773,1775379052692,-1052.848,0.00015033,2]
[419786774,1775379052710,-1347.0,0.00015033,2]
[419786775,1775379052731,-626.724,0.00015033,2]
[419786776,1775379052747,-276.522,0.00015033,2]
[419786777,1775379052763,-1229.18,0.00015033,2]
[419786778,1775379052779,-1047.087,0.00015033,2]
[419786779,1775379052797,-2471.0,0.00015033,2]
[419786780,1775379052814,-415.0,0.00015033,2]
[419786781,1775379052828,-8422.99193755,0.00015035,2]
[419786782,1775379052843,-1196.0,0.0001504,2]
[419786783,1775379052859,-2811.0,0.0001504,2]
[419786784,1775379052875,-150.0,0.0001504,2]
[419786785,1775379052890,-150.0,0.0001504,2]
[419786786,1775379052905,-150.0,0.0001504,2]
[419786787,1775379052920,-150.0,0.0001504,2]
[419786788,1775379052935,-150.0,0.00015045,2]
[419786789,1775379052951,-150.0,0.00015053,2]
[419786790,1775379052966,-900.0,0.00015068,2]
[419786791,1775379052981,-800.0,0.00015068,2]
[419786792,1775379052996,-150.0,0.00015069,2]
[419786793,1775379053020,-150.0,0.00015069,2]
[419786794,1775379053035,-150.0,0.00015071,2]
[419786795,1775379053050,-150.0,0.00015072,2]
[419786796,1775379053065,-1000.0,0.00015073,2]
[419786797,1775379053082,-150.0,0.00015074,2]
[419786798,1775379053097,-150.0,0.00015093,2]
[419786799,1775379053112,-150.0,0.00015095,2]
[419786800,1775379053128,-150.0,0.00015096,2]
[419786801,1775379053143,-150.0,0.00015097,2]
[419786802,1775379053158,-150.0,0.00015098,2]
[419786803,1775379053174,-150.0,0.00015098,2]
[419786804,1775379053190,-150.0,0.00015104,2]
[419786805,1775379053207,-150.0,0.00015116,2]
[419786806,1775379053222,-150.0,0.00015123,2]
[419786807,1775379053238,-150.0,0.00015127,2]
[419786808,1775379053254,-150.0,0.00015127,2]
[419786809,1775379053271,-150.0,0.00015136,2]
[419786810,1775379053286,-150.0,0.00015137,2]
[419786811,1775379053301,-150.0,0.00015147,2]
[419786812,1775379053317,-150.0,0.00015148,2]
[419786813,1775379053332,-150.0,0.00015156,2]
[419786814,1775379053347,-150.0,0.00015156,2]
[419786815,1775379053363,-150.0,0.00015158,2]
[419786816,1775379053378,-150.0,0.00015165,2]
[419786817,1775379053393,-150.0,0.00015168,2]
[419786818,1775379053409,-209.42,0.00015171,2]
[419786819,1775379053425,-40979.33701341,0.00015173,2]
[419786820,1775379053441,-150.0,0.00015174,2]
[419786821,1775379053455,-1800.0,0.00015178,2]
[419786822,1775379053472,-150.0,0.00015179,2]
[419786823,1775379053490,-150.0,0.00015185,2]
[419786824,1775379053505,-150.0,0.00015185,2]
[419786825,1775379053520,-322.47111,0.000152,2]
[419786826,1775379053535,-6733.22928325,0.000152,2]
[419786827,1775379053550,-5000.0,0.000152,2]
[419786828,1775379053565,-5000.0,0.000152,2]
[419786829,1775379053581,-5000.0,0.000152,2]
[419786830,1775379053596,-150.0,0.000152,2]
[419786831,1775379053612,-150.0,0.000152,2]
[419786832,1775379053627,-150.0,0.000152,2]
[419786833,1775379053642,-150.0,0.000152,2]
[419786834,1775379053658,-150.0,0.000152,2]
[419786835,1775379053673,-418.53577656,0.000152,2]
[419786836,1775379053688,-350.0,0.00015202,2]
[419786837,1775379053703,-1048.98200346,0.00015205,2]
[419786838,1775379053720,-150.0,0.00015215,2]
[419786839,1775379053735,-150.0,0.00015215,2]
[419786840,1775379053750,-150.0,0.00015221,2]
[419786841,1775379053766,-180.00096908,0.00015224,2]
[419786842,1775379053783,-1000.0,0.00015224,2]
[419786843,1775379053797,-1000.0,0.00015224,2]
[419786844,1775379053812,-1000.0,0.00015224,2]
[419786845,1775379053828,-1000.0,0.00015224,2]
[419786846,1775379053843,-1000.0,0.00015224,2]
[419786847,1775379053858,-1000.0,0.00015224,2]
[419786848,1775379053873,-790.32775663,0.00015224,2]
[419786849,1775379053889,-1000.0,0.00015224,2]
[419786850,1775379053904,-150.0,0.00015226,2]
[419786851,1775379053920,-150.0,0.00015232,2]
[419786852,1775379053935,-150.0,0.00015235,2]
[419786853,1775379053951,-150.0,0.00015242,2]
[419786854,1775379053967,-150.0,0.00015244,2]
[419786855,1775379053982,-150.0,0.00015244,2]